bitfinex/quotes_ETHUSD_20220220
["timestamp","ask_amount","ask_price","bid_price","bid_amount"]
[1645391150877,0.25205386,2623.0,2622.1,11.58]
[1645391151068,0.25205386,2623.0,2622.2,0.457]
[1645391151069,0.00205386,2623.0,2622.2,0.457]
[1645391151265,0.00205386,2623.0,2622.3,10.46187523]
[1645391151467,0.2379,2623.2,2622.9,1.03609945]
[1645391151669,0.2379,2623.2,2622.6,0.457]
[1645391152068,0.2379,2623.2,2622.6,0.407]
[1645391152669,0.87366227,2623.0,2622.6,0.407]
[1645391153268,0.87366227,2623.0,2622.4,0.04035806]
[1645391153670,0.87366227,2623.0,2622.3,0.04092648]
[1645391153914,1.1125341,2622.5,2622.3,0.04092648]
[1645391154115,1.1125341,2622.5,2622.2,0.04149491]
[1645391154315,0.3,2622.5,2622.1,0.09084221]
[1645391154519,0.3,2622.5,2622.2,0.04149491]
[1645391154715,0.00282769,2623.0,2622.2,0.04149491]
[1645391154926,4.0379,2623.2,2622.2,0.04149491]
[1645391155116,0.3,2623.1,2622.2,0.04149491]
[1645391155318,0.00282742,2623.0,2622.2,0.00256722]
[1645391155514,0.88027171,2622.7,2622.2,0.00256722]
[1645391155720,1.18027171,2622.7,2622.3,0.04092648]
[1645391156416,1.18027171,2622.7,2622.4,0.00256708]
[1645391156916,1.18027171,2622.7,2622.0,1.22022736]
[1645391157124,1.18027171,2622.7,2622.0,0.04881218]
[1645391157318,1.18027171,2622.7,2621.2,7.837]
[1645391157593,1.18027171,2622.7,2620.6,0.1906]
[1645391157594,3.6905,2622.6,2620.6,0.1906]
[1645391157778,3.6905,2622.6,2620.8,0.1907]
[1645391157779,5.0,2622.4,2620.8,0.1907]
[1645391157979,5.0,2622.1,2620.7,3.5]
[1645391158278,5.0,2622.1,2620.3,0.1907]
[1645391158279,1.4190189,2621.1,2620.3,0.1907]
[1645391158676,1.4190189,2621.1,2619.9,0.1907]
[1645391158882,1.4190189,2621.1,2619.8,7.38]
[1645391158883,3.5,2621.0,2619.8,7.38]
[1645391159079,3.6907,2621.0,2619.3,7.38]
[1645391159280,5.0,2620.5,2618.9,0.1907]
[1645391159480,0.03289495,2619.9,2618.6,5.0]
[1645391159683,0.03289495,2619.9,2618.4,0.2176267]
[1645391159684,0.03289495,2619.9,2618.7,0.1907]
[1645391159879,0.03289495,2619.9,2618.8,0.457]
[1645391160085,0.23289495,2620.3,2619.4,0.01209694]
[1645391160278,1.07350625,2620.5,2619.9,1.10071819]
[1645391160479,1.07350625,2620.5,2618.8,0.1907]
[1645391160679,1.07350625,2620.5,2618.7,0.0272267]
[1645391160680,3.5,2620.4,2618.7,0.0272267]
[1645391160883,1.56420625,2620.5,2619.1,5.0]
[1645391161084,1.3767,2620.8,2619.2,0.6477]
[1645391161085,0.25,2620.8,2619.2,0.6477]
[1645391161325,0.25,2620.8,2619.5,7.38]
[1645391161526,0.25,2620.8,2619.6,0.1907]
[1645391161727,0.25,2620.8,2619.9,5.0]
[1645391161928,0.25,2620.8,2620.0,0.1907]
[1645391162130,0.25,2621.3,2621.0,1.08259904]
[1645391162332,3.5,2621.5,2621.0,0.3]
[1645391162525,0.8828715,2621.6,2621.1,0.00255341]
[1645391162729,0.05,2621.2,2621.1,0.00255341]
[1645391162927,0.05,2621.2,2620.0,0.00255341]
[1645391163327,3.55,2621.5,2620.0,0.00255341]
[1645391163526,7.65,2621.5,2620.0,0.00255341]
[1645391163728,7.65,2621.5,2620.5,0.00256252]
[1645391163929,1.11470087,2621.0,2620.5,0.00256252]
[1645391164128,1.41470087,2621.0,2620.5,0.00256252]
[1645391164327,0.3,2621.0,2620.5,0.00511593]
[1645391164527,0.05,2621.2,2620.5,0.00511593]
[1645391164728,0.05,2621.2,2620.5,0.00255341]
[1645391164933,0.05,2621.2,2620.6,0.00256237]
[1645391165370,1.06939321,2621.4,2620.9,1.08362445]
[1645391165672,1.06939321,2621.4,2620.9,1.38362445]
[1645391165869,1.06939321,2621.4,2621.0,0.00255341]
[1645391166071,1.06939321,2621.4,2621.0,0.00511539]
[1645391166281,1.01939321,2621.4,2620.6,0.00380027]
[1645391166474,0.05,2620.7,2620.6,0.00380027]
[1645391167071,1.01939321,2621.4,2620.1,1.14531]
[1645391167072,0.05,2621.1,2620.2,0.3]
[1645391167271,1.01939321,2621.4,2620.7,0.3]
[1645391167672,0.00959393,2621.4,2621.0,1.0954825]
[1645391168073,0.00959393,2621.4,2621.0,1.3954825]
[1645391169120,0.00959393,2621.4,2621.0,0.3]
[1645391169323,0.00959393,2621.4,2620.4,3.5]
[1645391169521,0.00959393,2621.4,2620.4,3.8]
[1645391169722,0.00959393,2621.4,2620.4,3.5]
[1645391170322,0.00959393,2621.4,2620.8,1.18871624]
[1645391170723,0.05,2621.5,2620.8,1.18871624]
[1645391170724,0.00959393,2621.5,2620.8,1.18871624]
[1645391170924,0.00284495,2621.2,2620.8,0.3]
[1645391171121,0.00284495,2621.2,2620.5,0.00244389]
[1645391171726,0.0061712,2620.9,2620.5,12.53691389]
[1645391172023,0.0061712,2620.9,2620.6,3.5]
[1645391172221,0.0061712,2620.9,2620.7,0.3]
[1645391172874,0.0061712,2620.9,2620.8,0.86264787]
[1645391173175,0.0061712,2620.9,2620.8,0.71264787]
[1645391173380,0.00901623,2620.9,2620.8,0.71264787]
[1645391173775,0.00901623,2620.9,2620.8,0.66264787]
[1645391174174,0.0061712,2620.9,2620.8,0.66264787]
[1645391174374,0.0061712,2620.9,2620.8,0.96264787]
[1645391174574,0.0061712,2620.9,2620.8,0.66264787]
[1645391174575,3.8061712,2620.9,2620.8,0.66264787]
[1645391174776,4.0561712,2620.9,2620.8,0.66264787]
[1645391176826,4.0561712,2620.9,2620.5,0.00244389]
[1645391177824,4.0561712,2620.9,2619.9,0.007]
[1645391178020,0.00284506,2620.8,2620.6,0.90842363]
[1645391178221,0.00284506,2620.8,2620.7,0.3]
[1645391179021,4.0561712,2620.9,2620.7,0.3]
[1645391179221,4.05901625,2620.9,2620.7,0.3]
[1645391179423,4.05901625,2620.9,2620.7,0.20524206]
[1645391180262,4.0561712,2620.9,2620.7,0.20524206]
[1645391180468,4.05901623,2620.9,2620.7,0.20524206]
[1645391180665,4.05901623,2620.9,2620.5,0.00244389]
[1645391181466,4.0561712,2620.9,2620.3,0.00254123]
[1645391181666,4.0561712,2620.9,2620.5,0.00244389]
[1645391181667,0.00284506,2620.8,2620.5,0.00244389]
[1645391182467,0.00284506,2620.8,2620.7,1.11787258]
[1645391182668,3.8061712,2620.9,2620.7,1.11787258]
[1645391182868,0.00284507,2620.8,2620.7,1.11787258]
[1645391183915,4.1061712,2620.9,2620.7,1.11787258]
[1645391184112,4.1061712,2620.9,2620.7,1.41787258]
[1645391184517,3.8061712,2620.9,2620.7,1.41787258]
[1645391185313,3.80901623,2620.9,2620.7,1.41787258]
[1645391185816,4.10901623,2620.9,2620.7,1.41787258]
[1645391186214,4.1,2620.9,2620.7,1.41787258]
[1645391186429,0.1907,2622.0,2620.9,11.58]
[1645391186624,5.0262,2622.6,2621.1,4.99040607]
[1645391186818,5.0262,2622.6,2621.0,12.2277]
[1645391186819,3.6907,2622.6,2621.3,0.3]
[1645391187017,0.25,2622.9,2621.4,0.6475]
[1645391187215,1.09046625,2622.4,2621.8,1.2712961]
[1645391187417,1.09046625,2622.4,2621.9,0.457]
[1645391187665,0.00284466,2622.3,2621.9,0.457]
[1645391188565,1.39046625,2622.4,2621.9,0.757]
[1645391188764,1.39046625,2622.4,2621.9,0.457]
[1645391188970,0.00284467,2622.2,2621.5,0.457]
[1645391189365,0.25061061,2622.2,2621.5,0.457]
[1645391189568,0.00284467,2622.2,2621.5,1.46990686]
[1645391189767,0.3,2622.0,2621.5,1.76990686]
[1645391189966,0.3,2622.4,2621.5,1.76990686]
[1645391190166,0.00284474,2622.0,2621.5,1.76990686]
[1645391191168,0.24819257,2622.1,2621.5,1.76990686]
[1645391191423,0.00284477,2621.9,2621.5,1.76990686]
[1645391191626,0.00284477,2621.9,2621.5,0.3]
[1645391191823,0.00284477,2621.9,2621.2,0.3]
[1645391191824,0.25105684,2621.9,2621.2,0.3]
[1645391192023,0.00284477,2621.9,2621.1,0.757]
[1645391192223,0.24830015,2622.1,2621.1,0.457]
[1645391192523,0.00284482,2621.7,2621.1,0.457]
[1645391192725,0.00284482,2621.7,2621.3,1.07407889]
[1645391193124,0.00284482,2621.7,2621.3,1.37407889]
[1645391193529,0.24830015,2622.1,2621.4,0.457]
[1645391193726,0.00284484,2621.6,2621.4,0.457]
[1645391193930,0.00284484,2621.6,2620.4,0.71638306]
[1645391194226,0.00284484,2621.6,2620.5,1.91456927]
[1645391194426,0.00284484,2621.6,2620.6,0.457]
[1645391194627,0.24830015,2621.7,2620.6,1.80871499]
[1645391194826,0.24830015,2621.7,2620.7,1.35171499]
[1645391195074,0.00284496,2621.2,2620.9,1.05044439]
[1645391195267,0.00284496,2621.2,2620.9,1.35044439]
[1645391195869,0.24830015,2621.7,2620.9,1.35044439]
[1645391196074,0.24830015,2621.7,2620.9,1.90044439]
[1645391197269,0.00284823,2621.4,2620.9,1.85044439]
[1645391198070,0.8898615,2621.4,2620.9,1.85044439]
[1645391198272,0.8898615,2621.4,2620.9,1.30044439]
[1645391198273,0.3,2621.4,2620.9,1.30044439]
[1645391198471,0.00284828,2621.3,2621.0,0.00252756]
[1645391198927,0.00284828,2621.3,2620.9,1.30044439]
[1645391199525,4.1,2621.4,2620.9,1.30044439]
[1645391199730,0.00284829,2621.2,2621.0,0.00252756]
[1645391199925,0.00284829,2621.2,2620.9,1.30044439]
[1645391200726,0.25472202,2621.3,2620.9,1.30044439]
[1645391200929,0.0028483,2621.2,2620.9,1.30044439]
[1645391201827,0.00587794,2621.3,2620.9,1.30044439]
[1645391203064,0.00587794,2621.3,2621.0,1.35635428]
[1645391205673,0.00872956,2621.3,2621.0,1.35635428]
[1645391206547,0.4254552,2620.6,2620.5,0.00252756]
[1645391206740,0.4254552,2620.6,2620.5,1.35794729]
[1645391206741,0.7254552,2620.6,2620.5,1.35794729]
[1645391207139,0.7254552,2620.6,2620.4,0.00243787]
[1645391207140,0.7254552,2620.6,2620.4,1.36038516]
[1645391207336,0.7254552,2620.6,2620.5,1.35794729]
[1645391207736,0.7254552,2620.6,2620.4,1.66038516]
[1645391207937,0.7254552,2620.6,2620.4,1.65794729]
[1645391208135,0.7254552,2620.6,2620.4,1.66038516]
[1645391208338,0.7254552,2620.6,2620.5,1.35794729]
[1645391210371,4.5254552,2620.6,2620.5,1.35794729]
[1645391210971,4.5254552,2620.6,2620.5,1.30794729]
[1645391211872,4.5254552,2620.6,2620.4,0.85243787]
[1645391212077,4.5254552,2620.6,2620.4,0.30243787]
[1645391212278,0.00285175,2620.7,2620.5,0.55]
[1645391212478,0.00285175,2620.7,2620.5,13.08435]
[1645391212777,0.71611586,2621.9,2620.8,11.58]
[1645391212977,1.63578517,2622.4,2621.6,4.99040607]
[1645391212978,0.01118612,2622.4,2621.6,4.99040607]
[1645391213176,3.6011,2623.1,2621.7,22.503]
[1645391213177,0.95482115,2623.1,2621.7,22.503]
[1645391213380,0.25,2622.9,2622.2,11.58]
[1645391213574,0.90482115,2623.4,2622.3,12.12352889]
[1645391213824,0.90482115,2623.4,2622.5,11.57352889]
[1645391214027,0.25,2623.5,2622.6,0.55]
[1645391214231,0.85016823,2623.8,2622.6,0.55]
[1645391214430,0.76815823,2623.8,2622.7,0.1905]
[1645391214626,0.76815823,2623.8,2622.8,0.55]
[1645391214828,0.76815823,2623.8,2622.8,0.54373]
[1645391215331,0.94955181,2623.3,2622.8,0.54373]
[1645391215725,0.00187698,2623.4,2622.8,0.54373]
[1645391215930,1.63558517,2623.9,2622.8,0.54373]
[1645391215931,0.1906,2623.9,2622.8,0.54373]
[1645391216127,4.16053688,2624.1,2622.8,0.54373]
[1645391216427,2.05300148,2624.0,2622.8,0.54373]
[1645391216629,1.74670148,2624.0,2622.8,0.54373]
[1645391216832,0.85928254,2623.7,2622.8,1.51620768]
[1645391217228,1.15928254,2623.7,2622.8,1.81620768]
[1645391217427,1.15928254,2623.7,2622.8,0.84373]
[1645391217668,1.15928254,2623.7,2622.8,0.54373]
[1645391219066,0.00211825,2623.5,2622.8,0.54373]
[1645391219371,1.15372421,2623.3,2622.8,0.54373]
[1645391219568,1.45372421,2623.3,2622.8,0.3]
[1645391219770,1.45372421,2623.3,2622.5,0.55]
[1645391220170,1.45372421,2623.3,2622.5,0.85]
[1645391220367,1.45372421,2623.3,2622.5,1.7208242]
[1645391220570,1.45372421,2623.3,2622.5,1.4208242]
[1645391221175,1.45372421,2623.3,2622.5,0.55]
[1645391221433,1.45372421,2623.3,2622.4,0.4905]
[1645391221823,1.45372421,2623.3,2622.4,0.1905]
[1645391222227,1.37504042,2622.9,2622.4,0.1905]
[1645391222426,0.3,2623.3,2622.4,0.1905]
[1645391222824,1.1414269,2623.4,2622.4,0.1905]
[1645391222825,1.4414269,2623.4,2622.4,0.1905]
[1645391223028,0.71317829,2623.2,2622.4,0.1905]
[1645391223227,0.3,2623.2,2622.4,0.1905]
[1645391223427,1.80856734,2623.3,2622.6,0.96703708]
[1645391223625,1.09538905,2623.3,2622.6,1.26703708]
[1645391224028,1.09538905,2623.3,2622.6,0.3]
[1645391224225,1.09538905,2623.3,2622.4,0.1905]
[1645391224427,1.80856734,2623.3,2622.4,0.1905]
[1645391224629,1.80856734,2623.3,2622.2,3.8]
[1645391224826,1.80856734,2623.3,2622.2,0.3]
[1645391225064,1.80856734,2623.3,2622.1,0.85]
[1645391225267,1.11285461,2622.9,2622.4,0.3]
[1645391225467,1.41285461,2622.9,2622.1,0.55]
[1645391225665,1.687,2622.4,2622.1,0.55]
[1645391225871,1.687,2622.4,2622.1,0.85]
[1645391225872,1.987,2622.4,2622.1,0.85]
[1645391226068,1.987,2622.4,2622.1,0.55]
[1645391226266,1.987,2622.4,2622.1,1.60267568]
[1645391226468,1.987,2622.4,2622.1,1.90267568]
[1645391226669,1.987,2622.4,2622.1,1.51333095]
[1645391228269,1.987,2622.4,2622.1,1.81333095]
[1645391229932,1.987,2622.4,2622.1,2.76719095]
[1645391231528,1.987,2622.4,2622.1,1.81333095]
[1645391231728,0.00455274,2622.3,2622.1,1.81333095]
[1645391233377,0.15533003,2622.2,2621.5,2.8615]
[1645391233576,0.15533003,2622.2,2621.1,0.5]
[1645391233774,0.15533003,2622.2,2620.8,0.00244927]
[1645391233775,0.15533003,2622.1,2620.8,0.00244927]
[1645391233973,3.65533003,2622.1,2620.8,4.9004779]
[1645391234173,0.15533003,2622.0,2620.8,3.50244927]
[1645391234372,1.15533003,2622.0,2620.7,0.55]
[1645391234571,1.0494908,2621.7,2621.0,0.89708992]
[1645391234772,0.15533003,2621.6,2621.0,0.89708992]
[1645391236622,0.15533003,2621.6,2621.0,1.19708992]
[1645391238027,0.15533003,2621.6,2620.7,0.55]
[1645391238232,0.15533003,2621.6,2620.8,0.00244927]
[1645391239129,1.12766091,2621.3,2620.6,1.03449672]
[1645391239329,1.12766091,2621.3,2620.8,0.00244927]
[1645391239531,0.20565903,2621.2,2620.8,0.00244927]
[1645391239930,3.70565903,2621.2,2620.8,0.00244927]
[1645391240180,0.20564137,2621.1,2620.8,0.00244927]
[1645391240386,0.15564137,2621.1,2620.0,0.55]
[1645391240676,3.5,2621.2,2620.8,0.00244927]
[1645391241080,1.68455073,2620.8,2620.5,0.00979841]
[1645391241276,1.98455073,2620.8,2620.5,0.00979841]
[1645391241780,1.98455073,2620.8,2620.4,1.36124743]
[1645391242981,1.98455073,2620.8,2620.4,1.06124743]
[1645391243180,1.98455073,2620.8,2620.1,0.01396487]
[1645391243580,5.78455073,2620.8,2620.1,0.01396487]
[1645391244021,5.78455073,2620.8,2620.0,0.55]
[1645391244319,5.78455073,2620.8,2620.3,0.95629186]
[1645391244522,5.78455073,2620.8,2620.3,1.25629186]
[1645391244722,5.48455073,2620.8,2620.3,1.80629186]
[1645391245532,5.48455073,2620.8,2620.4,0.00243742]
[1645391246222,5.78455073,2620.8,2620.4,0.00243742]
[1645391246420,5.78455073,2620.8,2620.3,1.80629186]
[1645391246622,5.78455073,2620.8,2620.5,0.00243738]
[1645391246829,4.06021681,2620.8,2620.5,0.00243738]
[1645391247026,4.36021681,2620.8,2620.5,0.00243738]
[1645391247579,4.36021681,2620.8,2620.3,1.80629186]
[1645391247777,4.36021681,2620.8,2620.5,0.00244344]
[1645391248780,4.36021681,2620.8,2620.3,1.80629186]
[1645391248981,4.36021681,2620.8,2620.5,0.00244344]
[1645391249979,4.36021681,2620.8,2620.3,1.80629186]
[1645391250179,4.36021681,2620.8,2620.5,0.00244344]
[1645391251181,4.36021681,2620.8,2620.3,1.80629186]
[1645391251430,0.00438449,2620.7,2620.5,0.00244344]
[1645391252423,0.00438449,2620.7,2620.3,1.80629186]
[1645391252625,0.00438449,2620.7,2620.5,0.00244349]
[1645391253625,0.00438449,2620.7,2620.3,1.80629186]
[1645391253823,0.00438449,2620.7,2620.5,0.00244349]
[1645391254725,0.00438449,2620.7,2620.3,1.80629186]
[1645391255201,0.00438449,2620.7,2620.5,0.00244349]
[1645391256006,0.00438449,2620.7,2620.3,1.80629186]
[1645391256401,0.00438449,2620.7,2620.5,0.00244349]
[1645391257008,0.00438449,2620.7,2620.6,12.13]
[1645391259826,0.00438449,2620.7,2620.6,0.55]
[1645391260626,4.3146013,2620.8,2620.6,0.55]
[1645391262128,0.00438449,2620.7,2620.6,0.55]
[1645391262326,0.00438449,2620.7,2620.6,0.55244339]
[1645391263272,0.00438449,2620.7,2620.6,0.55]
[1645391265473,0.00438449,2620.7,2620.6,4.05]
[1645391265673,0.00438449,2620.7,2620.6,0.55]
[1645391267734,4.26898579,2620.8,2620.6,0.55]
[1645391268239,4.26898579,2620.8,2620.6,0.55244339]
[1645391268436,4.26898579,2620.8,2620.7,0.7000615]
[1645391268635,4.26898579,2620.8,2620.7,1.2500615]
[1645391271604,4.49808946,2620.8,2620.7,1.2500615]
[1645391273301,4.26898579,2620.8,2620.7,1.2500615]
[1645391273705,4.4981376,2620.8,2620.7,1.2500615]
[1645391276221,4.50224973,2620.8,2620.7,1.2500615]
[1645391276422,4.50224973,2620.8,2620.7,0.7000615]
[1645391277782,4.50224973,2620.8,2620.7,1.2500615]
[1645391277980,4.50224973,2620.8,2620.7,2.63415771]
[1645391281181,4.50224973,2620.8,2620.7,1.93409621]
[1645391282822,4.24203292,2620.8,2620.7,1.6738794]
[1645391288593,4.24203292,2620.8,2620.7,0.28978319]
[1645391288821,4.24203292,2620.8,2620.7,1.67728671]
[1645391289022,4.24203292,2620.8,2620.7,0.28978319]
[1645391289223,4.21067106,2620.8,2620.7,0.28978319]
[1645391289421,4.21067106,2620.8,2620.7,1.67728817]
[1645391289624,4.21067106,2620.8,2620.7,1.67728815]
[1645391289828,4.21067106,2620.8,2620.7,0.28978319]
[1645391290025,4.21067106,2620.8,2620.7,1.67779736]
[1645391290222,4.21067106,2620.8,2620.7,0.28978319]
[1645391290423,4.21067106,2620.8,2620.7,1.67778088]
[1645391290626,4.21067106,2620.8,2620.7,0.28978319]
[1645391291126,4.21067106,2620.8,2620.7,1.67777913]
[1645391291324,4.21067106,2620.8,2620.7,0.28978319]
[1645391291547,4.21067106,2620.8,2620.7,1.67772085]
[1645391291724,4.21067106,2620.8,2620.7,1.67772146]
[1645391291925,4.21067106,2620.8,2620.7,1.67772155]
[1645391292127,4.21067106,2620.8,2620.7,1.67773883]
[1645391292330,4.21067106,2620.8,2620.7,0.28978319]
[1645391292579,4.21067106,2620.8,2620.7,1.67773928]
[1645391292782,4.21067106,2620.8,2620.7,1.67771965]
[1645391292981,4.21067106,2620.8,2620.7,1.67771561]
[1645391293178,4.21067106,2620.8,2620.7,1.67771266]
[1645391293382,4.21067106,2620.8,2620.7,1.67770865]
[1645391293580,4.21067106,2620.8,2620.7,0.28978319]
[1645391293979,4.21067106,2620.8,2620.7,1.6777088]
[1645391294178,4.21067106,2620.8,2620.7,0.28978319]
[1645391294379,4.21067106,2620.8,2620.7,1.67773437]
[1645391294580,4.21067106,2620.8,2620.7,0.28978319]
[1645391294783,4.21067106,2620.8,2620.7,1.67773572]
[1645391294985,4.21067106,2620.8,2620.7,0.28978319]
[1645391295685,4.21067106,2620.8,2620.7,1.68180898]
[1645391295883,4.21067106,2620.8,2620.7,0.28978319]
[1645391296082,4.21067106,2620.8,2620.7,1.68182773]
[1645391296329,4.21067106,2620.8,2620.7,1.68182873]
[1645391296533,4.21067106,2620.8,2620.7,0.28978319]
[1645391296731,4.21067106,2620.8,2620.7,1.68182859]
[1645391296930,4.21067106,2620.8,2620.7,1.68182887]
[1645391297132,4.21067106,2620.8,2620.7,0.28978319]
[1645391297334,4.21067106,2620.8,2620.7,1.68183019]
[1645391297537,4.21067106,2620.8,2620.7,0.28978319]
[1645391297733,4.21067106,2620.8,2620.7,1.6818832]
[1645391297932,4.21067106,2620.8,2620.7,0.28978319]
[1645391298133,4.21067106,2620.8,2620.7,1.68188106]
[1645391298633,4.21067106,2620.8,2620.7,0.28978319]
[1645391299435,4.21067106,2620.8,2620.7,1.68186943]
[1645391299637,4.21067106,2620.8,2620.7,1.68186937]
[1645391299835,4.21067106,2620.8,2620.7,1.68186959]
[1645391300088,4.21067106,2620.8,2620.7,0.28978319]
[1645391300283,4.21067106,2620.8,2620.7,1.68185766]
[1645391300486,4.21067106,2620.8,2620.7,0.28978319]
[1645391300684,4.21067106,2620.8,2620.7,1.68186528]
[1645391300887,4.21067106,2620.8,2620.7,0.28978319]
[1645391301283,4.21067106,2620.8,2620.7,1.68189954]
[1645391301486,4.21067106,2620.8,2620.7,0.28978319]
[1645391301683,4.21067106,2620.8,2620.7,1.68195443]
[1645391301886,4.21067106,2620.8,2620.7,0.28978319]
[1645391302082,4.21067106,2620.8,2620.7,1.68195368]
[1645391302287,4.03326394,2620.8,2620.7,11.86978319]
[1645391302486,4.03326394,2620.8,2620.7,20.13488612]
[1645391302487,3.80411213,2620.8,2620.7,20.13488612]
[1645391303187,0.71317829,2621.4,2620.8,14.0]
[1645391303388,0.00272305,2621.5,2621.1,11.58]
[1645391303389,0.21566198,2621.3,2621.1,11.58]
[1645391303591,0.00272305,2621.5,2621.2,13.52210293]
[1645391303832,0.00272305,2621.5,2621.4,11.58]
[1645391304034,0.71317829,2621.8,2621.4,1.95501481]
[1645391304235,0.71317829,2621.8,2621.2,7.173]
[1645391304436,0.00272354,2621.5,2621.3,8.82539611]
[1645391304631,0.00272354,2621.5,2621.4,1.40239611]
[1645391304833,0.92755194,2621.5,2621.4,0.55]
[1645391305233,0.9248284,2621.5,2621.4,0.55]
[1645391305633,0.71317829,2621.5,2621.4,0.55]
[1645391306035,0.71590187,2621.6,2621.4,0.55]
[1645391306237,0.71317829,2621.5,2621.4,0.55]
[1645391306435,0.9248284,2621.5,2621.4,0.55]
[1645391306935,0.71317829,2621.5,2621.4,0.55]
[1645391307133,0.21165011,2621.5,2621.4,0.55]
[1645391307787,0.71317829,2621.6,2621.4,0.55]
[1645391307993,0.71317829,2621.5,2621.4,0.55]
[1645391308884,0.51165011,2621.5,2621.4,0.3]
[1645391309090,0.51165011,2621.5,2621.2,0.3]
[1645391309091,3.5,2621.5,2621.2,0.3]
[1645391309389,0.93009612,2621.4,2621.0,0.55]
[1645391309988,0.87299394,2621.3,2621.0,0.55]
[1645391310188,0.71844601,2621.1,2620.6,0.55]
[1645391310386,0.21165011,2621.1,2620.7,1.4231062]
[1645391310591,0.3,2621.0,2620.8,1.41313193]
[1645391310784,0.21165011,2620.9,2620.7,0.00997257]
[1645391310985,0.21165011,2620.8,2620.7,0.00997257]
[1645391311183,0.21165011,2620.8,2620.6,0.55]
[1645391311425,1.01844601,2621.1,2620.7,1.41299593]
[1645391311620,0.20027309,2621.0,2620.7,1.41499045]
[1645391312021,0.20027309,2621.0,2620.7,1.71499045]
[1645391312221,0.20027309,2621.0,2620.7,0.00199452]
[1645391312422,0.20027309,2621.0,2620.6,1.96314761]
[1645391312621,0.20027309,2621.0,2620.7,1.41314761]
[1645391312824,0.20027309,2621.0,2620.7,1.41514213]
[1645391313226,1.01844601,2621.1,2620.7,1.41514213]
[1645391313524,0.71844601,2621.2,2620.7,1.41514213]
[1645391313723,0.71844601,2621.2,2620.7,1.41314761]
[1645391313922,0.71844601,2621.2,2620.7,1.41514214]
[1645391315077,1.89143995,2621.3,2620.7,1.41514214]
[1645391315783,0.71844601,2621.2,2620.7,1.41514214]
[1645391315978,0.71844601,2621.2,2620.7,1.41314761]
[1645391316181,1.17299394,2621.3,2620.5,0.3]
[1645391316182,0.71844601,2621.0,2620.5,0.3]
[1645391316379,0.71844601,2620.9,2620.7,0.00199453]
[1645391316582,0.68317704,2620.9,2620.7,0.00199453]
[1645391316779,0.3,2620.9,2620.7,0.00199453]
[1645391317179,0.84645532,2620.9,2620.3,0.55]
[1645391317380,0.84998336,2620.9,2620.3,0.55]
[1645391317583,0.84998336,2620.9,2620.7,0.00199453]
[1645391317784,2.10091026,2620.9,2620.7,0.00199453]
[1645391318486,2.10091026,2620.9,2619.9,0.007]
[1645391318680,0.9509269,2620.8,2620.3,0.00240715]
[1645391318932,1.14998336,2620.9,2620.3,0.00240715]
[1645391318933,0.9509269,2620.7,2620.3,0.00240715]
[1645391319136,0.3,2620.7,2620.3,0.00240715]
[1645391319735,1.18724798,2620.3,2619.9,0.007]
[1645391319935,1.2509269,2620.8,2620.0,0.01143528]
[1645391320138,0.3,2620.3,2620.0,0.01143528]
[1645391320342,1.2509269,2620.8,2620.0,0.01143528]
[1645391320638,11.95452804,2620.9,2620.0,0.01143528]
[1645391320639,13.20545494,2620.9,2620.0,0.01143528]
[1645391320846,12.25452804,2620.9,2619.9,0.007]
[1645391321042,1.07217904,2620.5,2619.8,0.0025254]
[1645391321340,1.37217904,2620.5,2619.6,0.44876488]
[1645391324598,5.07217904,2620.5,2619.6,0.44876488]
[1645391324797,21.5,2620.3,2618.6,3.6754701]
[1645391325001,21.5,2620.3,2618.1,6.22163089]
[1645391325002,5.0,2618.7,2617.8,0.1]
[1645391325204,3.27983844,2618.3,2617.4,0.1091079]
[1645391325402,3.17983844,2618.0,2616.9,1.97299156]
[1645391325606,3.5,2618.2,2617.0,2.59792426]
[1645391325607,3.17983844,2617.6,2617.0,2.59792426]
[1645391325799,0.8374587,2617.3,2616.7,0.95577]
[1645391326005,0.8374587,2617.3,2616.6,0.96704872]
[1645391326006,0.45,2617.2,2616.6,0.96704872]
[1645391326200,3.5,2617.1,2616.6,0.96704872]
[1645391326462,1.55,2617.0,2616.0,2.18226156]
[1645391326659,0.55,2617.0,2616.0,0.3621]
[1645391326854,0.55,2617.0,2616.6,1.82016156]
[1645391327057,0.2,2617.0,2616.0,0.3621]
[1645391327256,0.2,2617.0,2616.7,1.82016156]
[1645391327453,0.71478365,2617.6,2616.8,0.55]
[1645391327649,0.71478365,2617.6,2616.8,1.55189782]
[1645391328051,0.71478365,2617.7,2616.8,1.85189782]
[1645391328255,0.71478365,2617.6,2616.8,1.85189782]
[1645391328451,0.3,2617.7,2616.8,1.85189782]
[1645391328658,0.95607,2617.6,2616.8,0.55]
[1645391328853,4.936041,2617.6,2616.8,0.55]
[1645391329052,3.5,2617.5,2616.4,0.55]
[1645391329252,1.51509295,2616.5,2616.4,0.55]
[1645391329452,1.51509295,2616.5,2616.4,2.37016156]
[1645391330089,1.81509295,2616.5,2616.4,1.18511583]
[1645391330287,1.81509295,2616.5,2616.4,1.48511583]
[1645391330588,1.81509295,2616.5,2616.0,0.55]
[1645391330786,1.81509295,2616.5,2616.4,1.82016156]
[1645391331192,1.71509295,2616.5,2616.4,1.67016156]
[1645391331387,1.71509295,2616.5,2616.3,0.00228702]
[1645391331789,1.71509295,2616.5,2616.4,1.67016156]
[1645391332191,1.71509295,2616.5,2616.3,0.00228706]
[1645391332389,1.94049295,2616.5,2616.3,0.00228706]
[1645391332990,1.94049295,2616.5,2615.7,0.34754984]
[1645391333190,0.87101145,2616.1,2615.7,0.34754984]
[1645391333390,2.78455145,2616.1,2615.7,0.34754984]
[1645391333587,3.5,2616.0,2615.7,0.34754984]
[1645391333845,3.5,2616.0,2615.1,1.05833333]
[1645391333846,3.8,2616.0,2615.1,1.05833333]
[1645391334040,3.5,2616.0,2615.1,1.05833333]
[1645391334243,4.45677,2616.0,2614.9,0.496]
[1645391334648,4.45677,2616.0,2615.0,0.04035807]
[1645391334858,3.32983844,2615.5,2614.6,0.0304566]
[1645391335045,3.32983844,2615.5,2614.0,2.3976]
[1645391335046,0.01244774,2615.1,2614.0,2.3976]
[1645391335242,0.01244774,2615.1,2614.4,1.01365541]
[1645391335444,6.3573285,2615.4,2614.4,1.01365541]
[1645391335445,0.4912,2615.4,2614.4,1.01365541]
[1645391335644,0.3,2615.7,2615.3,1.67016156]
[1645391335845,0.08611616,2615.8,2614.7,1.67016156]